bitfinex-derivatives/quotes_BNBF0:USTF0_20250630
["timestamp","ask_amount","ask_price","bid_price","bid_amount"]
[1751286623121,0.26594017,654.8,653.9,1.1074214]
[1751286623323,0.26594017,654.8,653.91,1.1074214]
[1751286623517,0.26594017,654.8,653.92,1.1074214]
[1751286623721,0.26594017,654.8,653.93,1.1074214]
[1751286623919,0.26594017,654.8,653.94,1.1074214]
[1751286624122,0.26594017,654.8,653.95,1.1074214]
[1751286624422,0.26594017,654.8,653.96,1.1074214]
[1751286624622,0.26594017,654.8,653.97,1.1074214]
[1751286624920,0.26594017,654.8,653.98,1.1074214]
[1751286625117,0.26594017,654.8,653.99,1.1074214]
[1751286625417,0.26594017,654.8,654.0,1.1074214]
[1751286625618,0.26594017,654.8,654.01,1.1074214]
[1751286625821,0.26594017,654.8,654.02,1.1074214]
[1751286626122,0.26594017,654.8,653.87,1.778]
[1751286626322,0.26594017,654.8,653.88,1.1072272]
[1751286626524,0.26594017,654.8,653.89,1.1072272]
[1751286626719,0.26594017,654.8,653.9,1.1072272]
[1751286626922,0.26594017,654.8,653.91,1.1072272]
[1751286627123,0.26594017,654.8,653.92,1.1072272]
[1751286627320,0.26594017,654.8,653.93,1.1072272]
[1751286627518,0.26594017,654.8,653.94,1.1072272]
[1751286627720,0.26594017,654.8,653.95,1.1072272]
[1751286627924,0.26594017,654.8,653.96,1.1072272]
[1751286628222,0.26594017,654.8,653.97,1.1072272]
[1751286628424,0.26594017,654.8,653.98,1.1072272]
[1751286628726,0.26594017,654.8,653.99,1.1072272]
[1751286628919,0.26594017,654.8,654.0,1.1072272]
[1751286629120,0.26594017,654.8,654.01,1.1072272]
[1751286629322,0.26594017,654.8,653.79,1.1429116]
[1751286629521,0.26594017,654.8,653.8,1.1071327]
[1751286629720,0.26594017,654.8,653.78,1.1429116]
[1751286629721,0.26594017,654.8,653.81,1.1071327]
[1751286629926,0.26594017,654.8,653.82,1.1071327]
[1751286630121,0.26594017,654.8,653.83,1.1071327]
[1751286630425,0.26594017,654.8,653.84,1.1071327]
[1751286630622,0.26594017,654.8,653.85,1.1071327]
[1751286630823,0.26594017,654.8,653.86,1.1071327]
[1751286631127,0.26594017,654.8,653.87,1.1071327]
[1751286631326,0.26594017,654.8,653.88,1.1071327]
[1751286631525,0.26594017,654.8,653.89,1.1071327]
[1751286631724,0.26594017,654.8,653.9,1.1071327]
[1751286631923,0.26594017,654.8,653.91,1.1071327]
[1751286632136,0.26594017,654.8,653.92,1.1071327]
[1751286632326,0.26594017,654.8,653.93,1.1071327]
[1751286632526,0.26594017,654.8,653.94,1.1071327]
[1751286632727,0.26594017,654.8,653.95,1.1071327]
[1751286632924,0.26594017,654.8,653.96,1.1071327]
[1751286633124,0.26594017,654.8,653.97,1.1071327]
[1751286633427,0.26594017,654.8,653.98,1.1071327]
[1751286633727,0.26594017,654.8,653.99,1.1071327]
[1751286633928,0.26594017,654.8,654.0,1.1071327]
[1751286634227,0.26594017,654.8,654.01,1.1071327]
[1751286634428,0.26594017,654.8,653.86,1.746]
[1751286634725,0.26594017,654.8,653.87,1.1070171]
[1751286635024,0.26594017,654.8,653.88,1.1070171]
[1751286635228,0.26594017,654.8,653.89,1.1070171]
[1751286635429,0.26594017,654.8,653.9,1.1070171]
[1751286635629,0.26594017,654.8,653.91,1.1070171]
[1751286635830,0.26594017,654.8,653.92,1.1070171]
[1751286636027,0.26594017,654.8,653.93,1.1070171]
[1751286636225,0.26594017,654.8,653.94,1.1070171]
[1751286636425,0.26594017,654.8,653.95,1.1070171]
[1751286636630,0.26594017,654.8,653.96,1.1070171]
[1751286636825,0.26594017,654.8,653.97,1.1070171]
[1751286637028,0.26594017,654.8,653.98,1.1070171]
[1751286637228,0.26594017,654.8,653.99,1.1070171]
[1751286637431,0.26594017,654.8,654.0,1.1070171]
[1751286637628,0.26594017,654.8,654.01,1.1070171]
[1751286637831,0.26594017,654.8,653.86,1.746]
[1751286638029,0.26594017,654.8,653.87,1.1069654]
[1751286638229,0.26594017,654.8,653.88,1.1069654]
[1751286638427,0.26594017,654.8,653.89,1.1069654]
[1751286638628,0.26594017,654.8,653.9,1.1069654]
[1751286638828,0.26594017,654.8,653.91,1.1069654]
[1751286639028,0.26594017,654.8,653.92,1.1069654]
[1751286639232,0.26594017,654.8,653.86,1.746]
[1751286639233,0.26594017,654.8,653.93,1.1069654]
[1751286639430,0.26594017,654.8,653.94,1.1069654]
[1751286639631,0.26594017,654.8,653.95,1.1069654]
[1751286639934,0.26594017,654.8,653.96,1.1069654]
[1751286640233,0.26594017,654.8,653.97,1.1069654]
[1751286640450,0.26594017,654.8,653.98,1.1069654]
[1751286640633,0.26594017,654.8,653.99,1.1069654]
[1751286640833,0.26594017,654.8,654.0,1.1069654]
[1751286641033,0.26594017,654.8,654.01,1.1069654]
[1751286641232,0.26594017,654.8,653.86,1.746]
[1751286641431,0.26594017,654.8,653.87,1.1073821]
[1751286641635,0.26594017,654.8,653.88,1.1073821]
[1751286641833,0.26594017,654.8,653.89,1.1073821]
[1751286642032,0.26594017,654.8,653.9,1.1073821]
[1751286642233,0.26594017,654.8,653.91,1.1073821]
[1751286642533,0.26594017,654.8,653.92,1.1073821]
[1751286642832,0.26594017,654.8,653.93,1.1073821]
[1751286643031,0.26594017,654.8,653.94,1.1073821]
[1751286643238,0.26594017,654.8,653.95,1.1073821]
[1751286643436,0.26594017,654.8,653.96,1.1073821]
[1751286643639,0.26594017,654.8,653.97,1.1073821]
[1751286643938,0.26594017,654.8,653.98,1.1073821]
[1751286644131,0.26594017,654.8,653.99,1.1073821]
[1751286644332,0.26594017,654.8,654.0,1.1073821]
[1751286644533,0.26594017,654.8,654.01,1.1073821]
[1751286644732,0.26594017,654.8,654.02,1.1073821]
[1751286644933,0.26594017,654.8,654.03,1.1073821]
[1751286645136,0.26594017,654.8,654.04,1.1073821]
[1751286645337,0.26594017,654.8,654.05,1.1073821]
[1751286645531,0.26594017,654.8,654.06,1.1073821]
[1751286645732,0.26594017,654.8,654.07,1.1073821]
[1751286645935,0.26594017,654.8,654.08,1.1073821]
[1751286646137,0.26594017,654.8,654.09,1.1073821]
[1751286646436,0.26594017,654.8,654.1,1.1073821]
[1751286646636,0.26594017,654.8,653.89,1.1429116]
[1751286646831,0.26594017,654.8,653.9,1.1062166]
[1751286647035,0.26594017,654.8,653.91,1.1062166]
[1751286647234,0.26594017,654.8,653.92,1.1062166]
[1751286647432,0.26594017,654.8,653.93,1.1062166]
[1751286647637,0.26594017,654.8,653.94,1.1062166]
[1751286647834,0.26594017,654.8,653.95,1.1062166]
[1751286648151,0.26594017,654.8,653.96,1.1062166]
[1751286648336,0.26594017,654.8,653.97,1.1062166]
[1751286648636,0.26594017,654.8,653.98,1.1062166]
[1751286648935,0.26594017,654.8,653.88,1.1429116]
[1751286648936,0.26594017,654.8,653.99,1.1062166]
[1751286649236,0.26594017,654.8,654.0,1.1062166]
[1751286649538,0.26594017,654.8,654.01,1.1062166]
[1751286649736,0.26594017,654.8,654.02,1.1062166]
[1751286649935,0.26594017,654.8,654.03,1.1062166]
[1751286650135,0.26594017,654.8,654.04,1.1062166]
[1751286650334,0.26594017,654.8,654.05,1.1062166]
[1751286650537,0.26594017,654.8,654.06,1.1062166]
[1751286650734,0.26594017,654.8,654.07,1.1062166]
[1751286650933,0.26594017,654.8,654.08,1.1062166]
[1751286651136,0.26594017,654.8,653.86,1.746]
[1751286651336,0.26594017,654.8,653.87,1.1054699]
[1751286651534,0.26594017,654.8,653.88,1.1054699]
[1751286651834,0.26594017,654.8,653.89,1.1054699]
[1751286652136,0.26594017,654.8,653.9,1.1054699]
[1751286652336,0.26594017,654.8,653.91,1.1054699]
[1751286652533,0.26594017,654.8,653.92,1.1054699]
[1751286652833,0.26594017,654.8,653.93,1.1054699]
[1751286653037,0.26594017,654.8,653.94,1.1054699]
[1751286653236,0.26594017,654.8,653.95,1.1054699]
[1751286653438,0.26594017,654.8,653.96,1.1054699]
[1751286653734,0.26594017,654.8,653.97,1.1054699]
[1751286653938,0.26594017,654.8,653.98,1.1054699]
[1751286654136,0.26594017,654.8,653.99,1.1054699]
[1751286654337,0.26594017,654.8,654.0,1.1054699]
[1751286654537,0.26594017,654.8,654.01,1.1054699]
[1751286654739,0.26594017,654.8,654.02,1.1054699]
[1751286654938,0.26594017,654.8,654.03,1.1054699]
[1751286655132,0.26594017,654.8,654.04,1.1054699]
[1751286655336,0.26594017,654.8,654.05,1.1054699]
[1751286655538,0.26594017,654.8,654.06,1.1054699]
[1751286655736,0.26594017,654.8,654.07,1.1054699]
[1751286655939,0.26594017,654.8,653.86,1.746]
[1751286656236,0.26594017,654.8,653.87,1.1050931]
[1751286656438,0.26594017,654.8,653.88,1.1050931]
[1751286656738,0.26594017,654.8,653.89,1.1050931]
[1751286657038,0.26594017,654.8,653.9,1.1050931]
[1751286657237,0.26594017,654.8,653.91,1.1050931]
[1751286657441,0.26594017,654.8,653.92,1.1050931]
[1751286657638,0.26594017,654.8,653.93,1.1050931]
[1751286657843,0.26594017,654.8,653.94,1.1050931]
[1751286658044,0.26594017,654.8,653.95,1.1050931]
[1751286658243,0.26594017,654.8,653.96,1.1050931]
[1751286658443,0.26594017,654.8,653.97,1.1050931]
[1751286658645,0.26594017,654.8,653.98,1.1050931]
[1751286658944,0.26594017,654.8,653.99,1.1050931]
[1751286659241,0.26594017,654.8,654.0,1.1050931]
[1751286659440,0.26594017,654.8,654.01,1.1050931]
[1751286659644,0.26594017,654.8,654.02,1.1050931]
[1751286659839,0.26594017,654.8,654.03,1.1050931]
[1751286660040,0.26594017,654.8,654.04,1.1050931]
[1751286660241,0.26594017,654.8,654.05,1.1050931]
[1751286660542,0.26594017,654.8,654.06,1.1050931]
[1751286660742,0.26594017,654.8,653.86,1.746]
[1751286660942,0.26594017,654.8,653.87,1.104817]
[1751286661140,0.26594017,654.8,653.88,1.104817]
[1751286661444,0.26594017,654.8,653.89,1.104817]
[1751286661643,0.26594017,654.8,653.9,1.104817]
[1751286661839,0.26594017,654.8,653.91,1.104817]
[1751286662040,0.26594017,654.8,653.92,1.104817]
[1751286662239,0.26594017,654.8,653.93,1.104817]
[1751286662441,0.26594017,654.8,653.94,1.104817]
[1751286662644,0.26594017,654.8,653.95,1.104817]
[1751286662844,0.26594017,654.8,653.96,1.104817]
[1751286663042,0.26594017,654.8,653.97,1.104817]
[1751286663245,0.26594017,654.8,653.98,1.104817]
[1751286663542,0.26594017,654.8,653.99,1.104817]
[1751286663743,0.26594017,654.8,654.0,1.104817]
[1751286663943,0.26594017,654.8,654.01,1.104817]
[1751286664143,0.26594017,654.8,654.02,1.104817]
[1751286664351,0.26594017,654.8,654.03,1.104817]
[1751286664549,0.26594017,654.8,654.04,1.104817]
[1751286664750,0.26594017,654.8,654.05,1.104817]
[1751286665045,0.26594017,654.8,654.06,1.104817]
[1751286665249,0.26594017,654.8,653.86,1.746]
[1751286665545,0.26594017,654.8,653.87,1.1046834]
[1751286665749,0.26594017,654.8,653.88,1.1046834]
[1751286665952,0.26594017,654.8,653.89,1.1046834]
[1751286666249,0.26594017,654.8,653.9,1.1046834]
[1751286666545,0.26594017,654.8,653.91,1.1046834]
[1751286666751,0.26594017,654.8,653.92,1.1046834]
[1751286666951,0.26594017,654.8,653.93,1.1046834]
[1751286667248,0.26594017,654.8,653.94,1.1046834]
[1751286667460,0.26594017,654.8,653.95,1.1046834]
[1751286667651,0.26594017,654.8,653.96,1.1046834]
[1751286667948,0.26594017,654.8,653.97,1.1046834]
[1751286668147,0.26594017,654.8,653.98,1.1046834]
[1751286668348,0.26594017,654.8,653.99,1.1046834]
[1751286668651,0.26594017,654.8,654.0,1.1046834]
[1751286668852,0.26594017,654.8,654.01,1.1046834]
[1751286669148,0.26594017,654.8,654.02,1.1046834]
[1751286669348,0.26594017,654.8,654.03,1.1046834]
[1751286669559,0.26594017,654.8,654.04,1.1046834]
[1751286669751,0.26594017,654.8,654.05,1.1046834]
[1751286669953,0.26594017,654.8,654.06,1.1046834]
[1751286670149,0.26594017,654.8,653.86,1.746]
[1751286670450,0.26594017,654.8,653.87,1.1043509]
[1751286670749,0.26594017,654.8,653.88,1.1043509]
[1751286670947,0.26594017,654.8,653.89,1.1043509]
[1751286671153,0.26594017,654.8,653.9,1.1043509]
[1751286671354,0.26594017,654.8,653.91,1.1043509]
[1751286671554,0.26594017,654.8,653.92,1.1043509]
[1751286671755,0.26594017,654.8,653.93,1.1043509]
[1751286671956,0.26594017,654.8,653.94,1.1043509]
[1751286672156,0.26594017,654.8,653.95,1.1043509]
[1751286672458,0.26594017,654.8,653.96,1.1043509]
[1751286672653,0.26594017,654.8,653.97,1.1043509]
[1751286672953,0.26594017,654.8,653.98,1.1043509]
[1751286673152,0.26594017,654.8,653.99,1.1043509]
[1751286673354,0.26594017,654.8,654.0,1.1043509]
[1751286673554,0.26594017,654.8,654.01,1.1043509]
[1751286673760,0.26594017,654.8,654.02,1.1043509]
[1751286674058,0.26594017,654.8,654.03,1.1043509]
[1751286674252,0.26594017,654.8,654.04,1.1043509]
[1751286674456,0.26594017,654.8,654.05,1.1043509]
[1751286674655,0.26594017,654.8,653.88,1.1043509]
[1751286674855,0.26594017,654.8,653.89,1.1043509]
[1751286675056,0.26594017,654.8,653.9,1.1043509]
[1751286675353,0.26594017,654.8,653.91,1.1043509]
[1751286675556,0.26594017,654.8,653.92,1.1043509]
[1751286675757,0.26594017,654.8,653.93,1.1043509]
[1751286675957,0.26594017,654.8,653.94,1.1043509]
[1751286676157,0.26594017,654.8,653.95,1.1043509]
[1751286676355,0.26594017,654.8,653.96,1.1043509]
[1751286676558,0.26594017,654.8,653.97,1.1043509]
[1751286676856,0.26594017,654.8,653.98,1.1043509]
[1751286677059,0.26594017,654.8,653.99,1.1043509]
[1751286677358,0.26594017,654.8,654.0,1.1043509]
[1751286677554,0.26594017,654.8,654.01,1.1043509]
[1751286677753,0.26594017,654.8,654.02,1.1043509]
[1751286677958,0.26594017,654.8,654.03,1.1043509]
[1751286678158,0.26594017,654.8,654.04,1.1043509]
[1751286678358,0.26594017,654.8,654.05,1.1043509]
[1751286678558,0.26594017,654.8,654.06,1.1043509]
[1751286678760,0.26594017,654.8,654.07,1.1043509]
[1751286679061,0.26594017,654.8,653.86,1.746]
[1751286679256,0.26594017,654.8,653.87,1.1046626]
[1751286679459,0.26594017,654.8,653.88,1.1046626]
[1751286679759,0.26594017,654.8,653.89,1.1046626]
[1751286679958,0.26594017,654.8,653.9,1.1046626]
[1751286680258,0.26594017,654.8,653.91,1.1046626]
[1751286680555,0.26594017,654.8,653.92,1.1046626]
[1751286680758,0.26594017,654.8,653.93,1.1046626]
[1751286680960,0.26594017,654.8,653.94,1.1046626]
[1751286681260,0.26594017,654.8,653.95,1.1046626]
[1751286681460,0.26594017,654.8,653.96,1.1046626]
[1751286681756,0.26594017,654.8,653.97,1.1046626]
[1751286681959,0.26594017,654.8,653.98,1.1046626]
[1751286682160,0.26594017,654.8,653.99,1.1046626]
[1751286682456,0.26594017,654.8,654.0,1.1046626]
[1751286682654,0.26594017,654.8,654.01,1.1046626]
[1751286682858,0.26594017,654.8,654.02,1.1046626]
[1751286683055,0.26594017,654.8,654.03,1.1046626]
[1751286683257,0.26594017,654.8,654.04,1.1046626]
[1751286683460,0.26594017,654.8,654.05,1.1046626]
[1751286683661,0.26594017,654.8,654.06,1.1046626]
[1751286683858,0.26594017,654.8,654.07,1.1046626]
[1751286684060,0.26594017,654.8,653.86,1.746]
[1751286684061,0.26594017,654.8,654.08,1.1046626]
[1751286684261,0.26594017,654.8,653.86,1.746]
[1751286684557,0.26594017,654.8,653.87,1.1049287]
[1751286684761,0.26594017,654.8,653.88,1.1049287]
[1751286685061,0.26594017,654.8,653.89,1.1049287]
[1751286685261,0.26594017,654.8,653.9,1.1049287]
[1751286685457,0.26594017,654.8,653.91,1.1049287]
[1751286685760,0.26594017,654.8,653.92,1.1049287]
[1751286685961,0.26594017,654.8,653.93,1.1049287]
[1751286686161,0.26594017,654.8,653.94,1.1049287]
[1751286686362,0.26594017,654.8,653.95,1.1049287]
[1751286686560,0.26594017,654.8,653.96,1.1049287]
[1751286686763,0.26594017,654.8,653.83,1.1429116]
[1751286686764,0.26594017,654.8,653.97,1.1049287]
[1751286686960,0.26594017,654.8,653.98,1.1049287]
[1751286687163,0.26594017,654.8,653.99,1.1049287]
[1751286687459,0.26594017,654.8,654.0,1.1049287]
[1751286687663,0.26594017,654.8,654.01,1.1049287]
[1751286687862,0.26594017,654.8,654.02,1.1049287]
[1751286688059,0.26594017,654.8,654.03,1.1049287]
[1751286688272,0.26594017,654.8,653.82,1.1429116]
[1751286688273,0.26594017,654.8,654.04,1.1049287]
[1751286688459,0.26594017,654.8,654.05,1.1049287]
[1751286688766,0.26594017,654.8,654.06,1.1049287]
[1751286689062,0.26594017,654.8,654.07,1.1049287]
[1751286693164,0.26594017,654.8,654.08,1.1049287]
[1751286693469,0.26594017,654.8,654.09,1.1049287]
[1751286693767,0.26594017,654.8,654.1,1.1049287]
[1751286694068,0.26594017,654.8,654.06,1.542]
[1751286694268,0.26594017,654.8,654.07,1.10563873]
[1751286694503,0.26594017,654.8,654.08,1.10563873]
[1751286694768,0.26594017,654.8,654.09,1.10563873]
[1751286694968,0.26594017,654.8,654.1,1.10563873]
[1751286695168,0.26594017,654.8,654.06,1.542]
[1751286695367,0.26594017,654.8,654.07,1.10586514]
[1751286695565,0.26594017,654.8,654.08,1.10586514]
[1751286695872,0.26594017,654.8,654.09,1.10586514]
[1751286696069,0.26594017,654.8,654.1,1.10586514]
[1751286696366,0.26594017,654.8,654.11,1.10586514]
[1751286696566,0.26594017,654.8,654.06,1.542]
[1751286696767,0.26594017,654.8,654.07,1.1060198]
[1751286696966,0.26594017,654.8,654.08,1.1060198]
[1751286697270,0.26594017,654.8,654.09,1.1060198]
[1751286697467,0.26594017,654.8,654.1,1.1060198]
[1751286697668,0.26594017,654.8,654.11,1.1060198]
[1751286697868,0.26594017,654.8,654.12,1.1060198]
[1751286698068,0.26594017,654.8,654.06,1.542]
[1751286698369,0.26594017,654.8,654.07,1.1061806]
[1751286698570,0.26594017,654.8,654.08,1.1061806]
[1751286698869,0.26594017,654.8,654.09,1.1061806]
[1751286699066,0.26594017,654.8,654.1,1.1061806]
[1751286699269,0.26594017,654.8,654.11,1.1061806]
[1751286699471,0.26594017,654.8,654.12,1.1061806]
[1751286699670,0.26594017,654.8,654.13,1.1061806]
[1751286699874,0.26594017,654.8,654.06,1.542]
[1751286700070,0.26594017,654.8,654.07,1.1063524]
[1751286700273,0.26594017,654.8,654.08,1.1063524]
[1751286700572,0.26594017,654.8,654.09,1.1063524]
[1751286700871,0.26594017,654.8,654.1,1.1063524]
[1751286701075,0.26594017,654.8,654.11,1.1063524]
[1751286701372,0.26594017,654.8,654.12,1.1063524]
[1751286701570,0.26594017,654.8,654.13,1.1063524]
[1751286701770,0.26594017,654.8,654.14,1.1063524]
[1751286701975,0.26594017,654.8,654.15,1.1063524]
[1751286702172,0.26594017,654.8,654.06,1.542]
[1751286702475,0.26594017,654.8,654.07,1.1071576]
[1751286702670,0.26594017,654.8,654.08,1.1071576]
[1751286702871,0.26594017,654.8,654.09,1.1071576]
[1751286703070,0.26594017,654.8,654.1,1.1071576]
[1751286703370,0.26594017,654.8,654.11,1.1071576]
[1751286703576,0.26594017,654.8,654.12,1.1071576]
[1751286703776,0.26594017,654.8,654.13,1.1071576]
[1751286704074,0.26594017,654.8,654.14,1.1071576]
[1751286704272,0.26594017,654.8,654.15,1.1071576]
[1751286704470,0.26594017,654.8,654.06,1.542]
[1751286704669,0.26594017,654.8,654.07,1.1073872]
[1751286704874,0.26594017,654.8,654.08,1.1073872]
[1751286705170,0.26594017,654.8,654.09,1.1073872]
[1751286705375,0.26594017,654.8,654.1,1.1073872]
[1751286705570,0.26594017,654.8,654.11,1.1073872]
[1751286705871,0.26594017,654.8,654.12,1.1073872]
[1751286706074,0.26594017,654.8,654.13,1.1073872]
[1751286706277,0.26594017,654.8,654.14,1.1073872]
[1751286706476,0.26594017,654.8,654.15,1.1073872]
[1751286706776,0.26594017,654.8,654.16,1.1073872]
[1751286706993,0.26594017,654.8,654.06,1.542]
[1751286707175,0.26594017,654.8,654.07,1.1074677]
[1751286707371,0.26594017,654.8,654.08,1.1074677]
[1751286707577,0.26594017,654.8,654.09,1.1074677]
[1751286707876,0.26594017,654.8,654.1,1.1074677]
[1751286708075,0.26594017,654.8,654.11,1.1074677]
[1751286708278,0.26594017,654.8,654.12,1.1074677]
[1751286708475,0.26594017,654.8,654.13,1.1074677]
[1751286708676,0.26594017,654.8,654.06,1.542]
[1751286708677,0.26594017,654.8,654.14,1.1074677]
[1751286708978,0.26594017,654.8,654.15,1.1074677]
[1751286709176,0.26594017,654.8,654.16,1.1074677]
[1751286709478,0.26594017,654.8,653.95,1.1429116]
[1751286709678,0.26594017,654.8,653.96,1.1074735]
[1751286709977,0.26594017,654.8,653.97,1.1074735]
[1751286710178,0.26594017,654.8,653.98,1.1074735]
[1751286710379,0.26594017,654.8,653.99,1.1074735]
[1751286710674,0.26594017,654.8,654.0,1.1074735]
[1751286710978,0.26594017,654.8,654.01,1.1074735]
[1751286711174,0.26594017,654.8,654.02,1.1074735]
[1751286711374,0.26594017,654.8,654.03,1.1074735]
[1751286711572,0.26594017,654.8,654.04,1.1074735]
[1751286711775,0.26594017,654.8,654.05,1.1074735]
[1751286712077,0.26594017,654.8,654.06,1.1074735]
[1751286712275,0.26594017,654.8,654.07,1.1074735]
[1751286712579,0.26594017,654.8,654.08,1.1074735]
[1751286712777,0.26594017,654.8,654.09,1.1074735]
[1751286713077,0.26594017,654.8,654.1,1.1074735]
[1751286713278,0.26594017,654.8,654.11,1.1074735]
[1751286713476,0.26594017,654.8,654.12,1.1074735]
[1751286713681,0.26594017,654.8,654.13,1.1074735]
[1751286713886,0.26594017,654.8,654.14,1.1074735]
[1751286714177,0.26594017,654.8,654.15,1.1074735]
[1751286714378,0.26594017,654.8,654.03,2.386]
[1751286714577,0.26594017,654.8,654.04,1.1074687]
[1751286714777,0.26594017,654.8,654.05,1.1074687]
[1751286714981,0.26594017,654.8,654.06,1.1074687]
[1751286715281,0.26594017,654.8,654.07,1.1074687]
[1751286715480,0.26594017,654.8,654.08,1.1074687]
[1751286715680,0.26594017,654.8,654.09,1.1074687]
[1751286715877,0.26594017,654.8,654.1,1.1074687]
[1751286716080,0.26594017,654.8,654.11,1.1074687]
[1751286716283,0.26594017,654.8,654.12,1.1074687]
[1751286716579,0.26594017,654.8,654.13,1.1074687]
[1751286716783,0.26594017,654.8,654.14,1.1074687]
[1751286717084,0.26594017,654.8,654.15,1.1074687]
[1751286717298,0.26594017,654.8,654.03,2.386]
[1751286717483,0.26594017,654.8,654.04,1.1074358]
[1751286717683,0.26594017,654.8,654.05,1.1074358]
[1751286717885,0.26594017,654.8,654.06,1.1074358]
[1751286718180,0.26594017,654.8,654.07,1.1074358]
[1751286718383,0.26594017,654.8,654.08,1.1074358]
[1751286718683,0.26594017,654.8,654.09,1.1074358]
[1751286718885,0.26594017,654.8,654.1,1.1074358]
[1751286719085,0.26594017,654.8,654.11,1.1074358]
[1751286719285,0.26594017,654.8,654.12,1.1074358]
[1751286719584,0.26594017,654.8,654.13,1.1074358]
[1751286719786,0.26594017,654.8,654.14,1.1074358]
[1751286720086,0.26594017,654.8,654.15,1.1074358]
[1751286720287,0.26594017,654.8,654.03,2.386]
[1751286720486,0.26594017,654.8,654.04,1.1074058]
[1751286720686,0.26594017,654.8,654.05,1.1074058]
[1751286720989,0.26594017,654.8,654.06,1.1074058]
[1751286721182,0.26594017,654.8,654.07,1.1074058]
[1751286721405,0.26594017,654.8,654.08,1.1074058]
[1751286721582,0.26594017,654.8,654.09,1.1074058]
[1751286721883,0.26594017,654.8,654.1,1.1074058]
[1751286722186,0.26594017,654.8,654.11,1.1074058]
[1751286722383,0.26594017,654.8,654.12,1.1074058]
[1751286722589,0.26594017,654.8,654.13,1.1074058]
[1751286722884,0.26594017,654.8,654.14,1.1074058]
[1751286723183,0.26594017,654.8,654.15,1.1074058]
[1751286723484,0.26594017,654.8,654.03,2.386]
[1751286723785,0.26594017,654.8,654.04,1.1073844]
[1751286723987,0.26594017,654.8,654.05,1.1073844]
[1751286724186,0.26594017,654.8,654.06,1.1073844]
[1751286724386,0.26594017,654.8,654.07,1.1073844]
[1751286724587,0.26594017,654.8,654.08,1.1073844]
[1751286724788,0.26594017,654.8,654.09,1.1073844]
[1751286724984,0.26594017,654.8,654.1,1.1073844]
[1751286725188,0.26594017,654.8,654.11,1.1073844]
[1751286725384,0.26594017,654.8,654.12,1.1073844]
[1751286725685,0.26594017,654.8,654.13,1.1073844]
[1751286725889,0.26594017,654.8,654.14,1.1073844]
[1751286726088,0.26594017,654.8,654.15,1.1073844]
[1751286726286,0.26594017,654.8,654.03,2.386]
[1751286726588,0.26594017,654.8,654.04,1.1073665]
[1751286726790,0.26594017,654.8,654.05,1.1073665]
[1751286726990,0.26594017,654.8,654.06,1.1073665]
[1751286727187,0.26594017,654.8,654.07,1.1073665]
[1751286727386,0.26594017,654.8,654.08,1.1073665]
[1751286727592,0.26594017,654.8,654.09,1.1073665]
[1751286727786,0.26594017,654.8,654.1,1.1073665]
[1751286727988,0.26594017,654.8,654.11,1.1073665]
[1751286728292,0.26594017,654.8,654.03,2.386]
[1751286728488,0.26594017,654.8,654.04,1.1072378]
[1751286728786,0.26594017,654.8,654.05,1.1072378]
[1751286728992,0.26594017,654.8,654.06,1.1072378]
[1751286729291,0.26594017,654.8,654.07,1.1072378]
[1751286729491,0.26594017,654.8,654.08,1.1072378]
[1751286729685,0.26594017,654.8,654.09,1.1072378]
[1751286729887,0.26594017,654.8,654.03,2.386]
[1751286730092,0.26594017,654.8,654.04,1.10695981]
[1751286730387,0.26594017,654.8,654.05,1.10695981]
[1751286730589,0.26594017,654.8,654.03,2.386]
[1751286730788,0.26594017,654.8,654.04,1.1067069]
[1751286730991,0.26594017,654.8,654.05,1.1067069]
[1751286731189,0.26594017,654.8,654.03,2.386]
[1751286731392,0.26594017,654.8,654.04,1.1065299]
[1751286731592,0.26594017,654.8,654.03,2.386]
[1751286731888,0.26594017,654.8,654.04,1.1065226]
[1751286732088,0.26594017,654.8,654.03,2.386]
[1751286732290,0.26594017,654.8,654.04,1.1063814]
[1751286732489,0.26594017,654.8,654.03,2.386]
[1751286732790,0.26594017,654.8,654.04,1.1063732]
[1751286732992,0.26594017,654.8,654.03,2.386]
[1751286736898,0.26594017,654.8,654.03,2.386]
[1751286749709,0.26594017,654.8,653.77,1.1429116]
[1751286749908,0.26594017,654.8,653.78,1.1051596]
[1751286750105,0.26594017,654.8,653.79,1.1051596]
[1751286750310,0.26594017,654.8,653.8,1.1051596]
[1751286750610,0.26594017,654.8,653.81,1.1051596]
[1751286750808,0.26594017,654.8,653.82,1.1051596]
[1751286751106,0.26594017,654.8,653.83,1.1051596]
[1751286751306,0.26594017,654.8,653.84,1.1051596]
[1751286751507,0.26594017,654.8,653.85,1.1051596]
[1751286751709,0.26594017,654.8,653.86,1.1051596]
[1751286751910,0.26594017,654.8,653.87,1.1051596]
[1751286752111,0.26594017,654.8,653.88,1.1051596]
[1751286752311,0.26594017,654.8,653.89,1.1051596]
[1751286752612,0.26594017,654.8,653.72,0.26593407]
[1751286752808,0.26594017,654.8,653.73,1.1051534]
[1751286753009,0.26594017,654.8,653.74,1.1051534]
[1751286753213,0.26594017,654.8,653.75,1.1051534]
[1751286753512,0.26594017,654.8,653.76,1.1051534]
[1751286753712,0.26594017,654.8,653.72,0.26593407]